bitfinex-derivatives/quotes_BTCF0:USTF0_20241015
["timestamp","ask_amount","ask_price","bid_price","bid_amount"]
[1729020312951,0.074756,66894.0,66893.0,0.05964699]
[1729020313256,0.074756,66894.0,66893.0,0.13440399]
[1729020313570,0.074756,66894.0,66893.0,0.13442656]
[1729020314164,0.074756,66894.0,66893.0,0.074757]
[1729020314356,0.074756,66894.0,66893.0,0.084757]
[1729020314568,0.074756,66894.0,66893.0,0.14442607]
[1729020314760,0.074756,66894.0,66893.0,0.06966907]
[1729020315160,0.074756,66894.0,66893.0,0.01]
[1729020315161,0.08580531,66894.0,66893.0,0.01]
[1729020315467,0.08580531,66894.0,66893.0,0.06966907]
[1729020315853,0.08580531,66894.0,66893.0,0.012]
[1729020318563,1.22400531,66894.0,66893.0,0.012]
[1729020320570,0.62400531,66894.0,66893.0,0.012]
[1729020322473,0.074764,66887.0,66886.0,0.01496]
[1729020322672,0.605564,66887.0,66886.0,0.01496]
[1729020323774,1.824084,66887.0,66886.0,0.01496]
[1729020323967,1.824084,66887.0,66886.0,0.02896]
[1729020324168,1.655084,66887.0,66886.0,0.02896]
[1729020324573,1.66630258,66887.0,66886.0,0.02896]
[1729020324771,1.66630258,66887.0,66886.0,0.03796]
[1729020326274,0.08698258,66887.0,66886.0,0.03796]
[1729020326477,0.001,66887.0,66886.0,0.282725]
[1729020326876,0.001,66887.0,66886.0,0.34238452]
[1729020328386,0.001,66887.0,66886.0,0.112725]
[1729020330876,0.001,66887.0,66886.0,0.19831198]
[1729020331870,0.245764,66887.0,66886.0,0.12354698]
[1729020332074,0.606564,66887.0,66886.0,0.03796]
[1729020332967,0.245764,66887.0,66886.0,0.112725]
[1729020333477,0.001,66887.0,66886.0,0.187243]
[1729020333680,0.001,66887.0,66886.0,0.19853792]
[1729020333983,0.001,66887.0,66886.0,0.27303203]
[1729020334174,0.001,66887.0,66886.0,0.18725699]
[1729020334376,0.171,66887.0,66886.0,0.19852081]
[1729020334573,0.171,66887.0,66886.0,0.112725]
[1729020335274,0.171,66887.0,66886.0,0.18726789]
[1729020335680,0.171,66887.0,66886.0,0.27326578]
[1729020336381,0.171,66887.0,66886.0,0.19872289]
[1729020336781,0.245764,66887.0,66886.0,0.19872289]
[1729020337484,0.245764,66887.0,66886.0,0.11254892]
[1729020337681,0.335764,66887.0,66886.0,0.03796]
[1729020338884,0.335764,66887.0,66886.0,0.09764564]
[1729020339384,0.335764,66887.0,66886.0,0.03796]
[1729020339776,0.335764,66887.0,66881.0,0.07458892]
[1729020339777,0.523285,66886.0,66881.0,0.07458892]
[1729020340078,0.523285,66886.0,66877.0,0.07458892]
[1729020340079,0.7008,66882.0,66877.0,0.07458892]
[1729020340271,0.244774,66878.0,66877.0,0.07458892]
[1729020340478,0.244774,66878.0,66877.0,0.16072351]
[1729020341172,0.229814,66878.0,66877.0,0.08858892]
[1729020341380,0.229814,66878.0,66877.0,0.17476032]
[1729020341583,0.229814,66878.0,66877.0,0.10354892]
[1729020341784,0.230814,66878.0,66877.0,0.10354892]
[1729020341985,0.230814,66878.0,66877.0,0.02896]
[1729020342281,0.231814,66878.0,66877.0,0.04296]
[1729020345394,0.15704,66878.0,66871.0,0.07458892]
[1729020345589,0.60558,66872.0,66868.0,0.07458892]
[1729020345787,0.15504,66869.0,66867.0,0.07458892]
[1729020345990,0.43558,66872.0,66862.0,0.00224285]
[1729020345991,0.074786,66867.0,66862.0,0.00224285]
[1729020346291,0.22983,66863.0,66862.0,0.00224285]
[1729020347285,0.22983,66863.0,66862.0,0.00924285]
[1729020347885,0.23083,66863.0,66862.0,0.00924285]
[1729020348188,0.23183,66863.0,66862.0,0.01124285]
[1729020348398,0.002,66863.0,66862.0,0.08603485]
[1729020349686,0.17,66868.0,66866.0,0.01296]
[1729020349895,0.3608,66872.0,66867.0,0.4356]
[1729020350092,0.3608,66872.0,66871.0,0.074782]
[1729020350995,0.37203898,66872.0,66871.0,0.074782]
[1729020351982,0.37303898,66872.0,66871.0,0.074782]
[1729020353287,0.37403898,66872.0,66871.0,0.14937092]
[1729020353692,0.37403898,66872.0,66871.0,0.40543212]
[1729020353995,0.37403898,66872.0,66871.0,0.3308432]
[1729020354184,0.01323898,66872.0,66871.0,0.3308432]
[1729020356585,0.01323898,66872.0,66871.0,0.1608432]
[1729020356990,0.002,66872.0,66871.0,0.3308432]
[1729020359297,0.002,66872.0,66871.0,0.42035023]
[1729020360588,0.002,66872.0,66871.0,0.3308432]
[1729020362291,0.002,66872.0,66871.0,0.42035023]
[1729020362884,0.002,66872.0,66871.0,0.78115023]
[1729020363085,0.34784,66880.0,66879.0,0.074773]
[1729020363388,0.074765,66886.0,66885.0,0.074765]
[1729020363593,0.074765,66886.0,66885.0,0.69142435]
[1729020363790,0.074762,66890.0,66889.0,0.074759]
[1729020363985,0.244762,66890.0,66889.0,0.08585935]
[1729020364587,0.244762,66890.0,66889.0,0.08540168]
[1729020365092,0.255762,66890.0,66889.0,0.08540168]
[1729020365495,0.255762,66890.0,66889.0,0.16016268]
[1729020365699,0.269762,66890.0,66889.0,0.16016268]
[1729020366484,0.248762,66890.0,66889.0,0.16016268]
[1729020367296,0.248762,66890.0,66889.0,0.08540168]
[1729020368092,0.074763,66888.0,66886.0,0.074764]
[1729020368489,0.074763,66888.0,66887.0,0.074764]
[1729020368694,0.174,66890.0,66885.0,0.3608]
[1729020368998,0.07876,66890.0,66889.0,0.074761]
[1729020369300,0.07476,66890.0,66889.0,0.074761]
[1729020369501,0.24476,66890.0,66889.0,0.074761]
[1729020370199,0.24976,66890.0,66889.0,0.074761]
[1729020371409,0.005,66890.0,66889.0,0.074761]
[1729020374713,0.07976,66890.0,66889.0,0.074761]
[1729020379406,0.07976,66890.0,66889.0,0.14932039]
[1729020379608,0.24976,66890.0,66889.0,0.07455939]
[1729020379809,0.24976,66890.0,66885.0,0.07455939]
[1729020380009,0.074766,66885.0,66884.0,0.07455939]
[1729020380309,0.005,66890.0,66884.0,0.44648463]
[1729020380513,0.005,66890.0,66887.0,0.074763]
[1729020380514,0.074764,66888.0,66887.0,0.074763]
[1729020381412,0.3608,66889.0,66886.0,0.07454378]
[1729020381718,0.074764,66887.0,66886.0,0.14930878]
[1729020382414,0.074764,66887.0,66886.0,0.23510991]
[1729020383017,0.074764,66887.0,66886.0,0.16034491]
[1729020383217,0.001,66888.0,66882.0,0.05969853]
[1729020383415,0.074768,66883.0,66882.0,0.01496]
[1729020383608,0.435568,66883.0,66882.0,0.01496]
[1729020384416,0.436568,66883.0,66882.0,0.01496]
[1729020385313,0.436568,66883.0,66882.0,0.01796]
[1729020386113,0.438568,66883.0,66882.0,0.01496]
[1729020386509,0.437568,66883.0,66882.0,0.01496]
[1729020386708,0.436568,66883.0,66882.0,0.01496]
[1729020387019,0.440568,66883.0,66882.0,0.01496]
[1729020387323,0.439568,66883.0,66882.0,0.01496]
[1729020387708,0.45098786,66883.0,66882.0,0.01496]
[1729020389116,0.44698786,66883.0,66882.0,0.01496]
[1729020389315,0.45198786,66883.0,66882.0,0.01496]
[1729020390022,0.45298786,66883.0,66882.0,0.01496]
[1729020390614,1.84154786,66883.0,66875.0,0.04474633]
[1729020390808,1.84154786,66883.0,66861.0,0.01146581]
[1729020390809,0.074792,66862.0,66861.0,0.01146581]
[1729020391008,0.7008,66862.0,66852.0,0.074802]
[1729020391210,0.074799,66855.0,66853.0,0.086249]
[1729020391514,0.074799,66855.0,66854.0,0.086249]
[1729020392022,0.15503,66856.0,66854.0,0.16113552]
[1729020392221,0.15503,66856.0,66855.0,0.23568198]
[1729020393228,0.15503,66856.0,66855.0,0.074799]
[1729020393229,0.15603,66856.0,66855.0,0.074799]
[1729020393619,0.15703,66856.0,66855.0,0.14934746]
[1729020393818,0.24323553,66856.0,66855.0,0.14934746]
[1729020394220,0.24323553,66856.0,66855.0,0.074799]
[1729020394627,0.074799,66855.0,66854.0,0.07454846]
[1729020394824,0.074799,66855.0,66854.0,0.16069325]
[1729020395027,0.074799,66855.0,66854.0,0.23549425]
[1729020395226,0.074799,66855.0,66854.0,0.074801]
[1729020395720,0.074799,66855.0,66854.0,0.078801]
[1729020395721,0.075799,66855.0,66854.0,0.078801]
[1729020396123,0.076799,66855.0,66854.0,0.078801]
[1729020403027,0.0903,66863.0,66854.0,0.078801]
[1729020403028,0.07479,66865.0,66862.0,0.01297]
[1729020403226,0.24479,66863.0,66862.0,0.01297]
[1729020404333,0.24479,66863.0,66862.0,0.01697]
[1729020404528,0.60559,66863.0,66862.0,0.01697]
[1729020404934,0.60559,66863.0,66862.0,0.01297]
[1729020405232,0.60659,66863.0,66862.0,0.01697]
[1729020406224,0.60759,66863.0,66862.0,0.01697]
[1729020410524,0.43759,66863.0,66862.0,0.091762]
[1729020410926,0.43759,66863.0,66862.0,0.15126518]
[1729020411122,0.43759,66863.0,66862.0,0.091762]
[1729020411435,0.43759,66863.0,66862.0,0.15136395]
[1729020411733,0.60759,66863.0,66862.0,0.07657195]
[1729020412137,0.60759,66863.0,66862.0,0.01697]
[1729020412327,0.60759,66863.0,66862.0,0.091762]
[1729020413833,0.60759,66863.0,66862.0,0.01697]
[1729020415940,0.24679,66863.0,66862.0,0.01697]
[1729020416837,0.41679,66863.0,66862.0,0.01697]
[1729020417135,0.41679,66863.0,66847.0,0.074808]
[1729020417136,0.074807,66848.0,66847.0,0.074808]
[1729020417441,0.244807,66848.0,66847.0,0.074808]
[1729020418140,0.17,66848.0,66847.0,0.074808]
[1729020418541,0.244807,66848.0,66847.0,0.074808]
[1729020418930,0.245807,66848.0,66847.0,0.075808]
[1729020419127,0.246807,66848.0,66847.0,0.075808]
[1729020420742,0.246807,66848.0,66847.0,0.001]
[1729020420941,0.342,66848.0,66846.0,0.01497]
[1729020421246,0.342,66848.0,66842.0,0.08951262]
[1729020421247,0.074813,66843.0,66842.0,0.08951262]
[1729020421428,0.074814,66842.0,66841.0,0.08951262]
[1729020421633,0.244814,66842.0,66841.0,0.08951262]
[1729020421934,0.07482,66837.0,66836.0,0.08951262]
[1729020422133,0.24482,66837.0,66836.0,0.17665645]
[1729020422342,0.24482,66837.0,66836.0,0.08714383]
[1729020423143,0.17,66837.0,66834.0,0.074822]
[1729020423336,0.074821,66836.0,66835.0,0.08650818]
[1729020423643,0.074821,66836.0,66835.0,0.16133018]
[1729020424249,0.074821,66836.0,66835.0,0.074822]
[1729020424731,0.074821,66836.0,66828.0,0.45255718]
[1729020424732,0.172,66837.0,66828.0,0.45255718]
[1729020424932,0.074823,66834.0,66833.0,0.074822]
[1729020425348,0.074823,66834.0,66833.0,0.08642015]
[1729020425639,0.059853,66834.0,66833.0,0.08642015]
[1729020426036,0.07134541,66834.0,66833.0,0.08642015]
[1729020426236,0.074824,66833.0,66832.0,0.074825]
[1729020426435,0.244824,66833.0,66832.0,0.16120978]
[1729020426630,0.17,66833.0,66828.0,0.36468456]
[1729020426834,0.17,66829.0,66828.0,0.36304456]
[1729020427150,0.244829,66829.0,66828.0,0.36304456]
[1729020427531,0.605629,66829.0,66828.0,0.00224456]
[1729020427736,0.605629,66829.0,66828.0,0.06186455]
[1729020428246,0.605629,66829.0,66828.0,0.00224456]
[1729020429038,0.606629,66829.0,66828.0,0.00224456]
[1729020429433,0.607629,66829.0,66828.0,0.00224456]
[1729020432445,0.074842,66817.0,66816.0,0.05961999]
[1729020432640,0.244842,66817.0,66815.0,0.42041999]
[1729020432834,0.3608,66816.0,66814.0,0.05961999]
[1729020433041,0.3608,66816.0,66804.0,0.01498]
[1729020433042,0.074855,66805.0,66804.0,0.01498]
[1729020433237,0.244855,66805.0,66804.0,0.01498]
[1729020434744,0.18095992,66805.0,66804.0,0.089837]
[1729020435443,0.18195992,66805.0,66804.0,0.01498]
[1729020435639,0.25681492,66805.0,66804.0,0.01498]
[1729020435842,0.42781492,66805.0,66804.0,0.01498]
[1729020436036,0.78861492,66805.0,66804.0,0.01498]
[1729020436242,0.074866,66796.0,66793.0,0.074869]
[1729020436436,0.17,66794.0,66793.0,0.074869]
[1729020437249,0.244868,66794.0,66793.0,0.074869]
[1729020438060,0.17,66794.0,66793.0,0.074869]
[1729020438554,0.171,66794.0,66793.0,0.074869]
[1729020438843,0.18243989,66794.0,66793.0,0.074869]
[1729020439347,0.18343989,66794.0,66793.0,0.074869]
[1729020441547,0.25830789,66794.0,66793.0,0.074869]
[1729020443547,0.074873,66789.0,66788.0,0.01498]
[1729020443851,0.605673,66789.0,66788.0,0.01498]
[1729020444941,0.606673,66789.0,66788.0,0.01498]
[1729020445356,0.605673,66789.0,66788.0,0.01498]
[1729020445552,0.606673,66789.0,66788.0,0.01498]
[1729020447144,0.608673,66789.0,66788.0,0.01498]
[1729020448845,0.003,66789.0,66788.0,0.089854]
[1729020449350,0.003,66789.0,66788.0,0.450654]
[1729020450245,0.003,66789.0,66788.0,0.089854]
[1729020450548,0.001,66789.0,66788.0,0.089854]
[1729020450850,0.003,66789.0,66788.0,0.089854]
[1729020451350,0.074857,66804.0,66802.0,0.074859]
[1729020451553,0.074857,66804.0,66798.0,0.17]
[1729020451750,0.074857,66804.0,66803.0,0.074858]
[1729020452048,0.08614946,66804.0,66803.0,0.074858]
[1729020452444,0.01129246,66804.0,66798.0,0.17]
[1729020452643,0.07486,66801.0,66797.0,0.3608]
[1729020452842,0.07486,66801.0,66800.0,0.074861]
[1729020453243,0.001,66804.0,66801.0,0.074859]
[1729020453460,0.074861,66800.0,66798.0,0.074863]
[1729020453658,0.074861,66800.0,66797.0,0.3608]
[1729020453659,0.074861,66800.0,66799.0,0.074862]
[1729020454049,0.074863,66798.0,66797.0,0.074864]
[1729020454248,0.244863,66798.0,66797.0,0.074864]
[1729020454649,0.074866,66796.0,66793.0,0.074868]
[1729020454849,0.17,66794.0,66793.0,0.074868]
[1729020456245,0.171,66794.0,66793.0,0.077868]
[1729020456556,0.171,66794.0,66793.0,0.079868]
[1729020457055,0.245868,66794.0,66793.0,0.079868]
[1729020457251,0.245868,66794.0,66793.0,0.077868]
[1729020457456,0.245868,66794.0,66793.0,0.005]
[1729020457863,0.606668,66794.0,66793.0,0.005]
[1729020458550,0.606668,66794.0,66793.0,0.01]
[1729020459151,0.605668,66794.0,66793.0,0.002]
[1729020459347,0.605668,66794.0,66793.0,0.003]
[1729020459547,0.605668,66794.0,66793.0,0.005]
[1729020459743,0.605668,66794.0,66793.0,0.002]
[1729020459948,0.606668,66794.0,66793.0,0.002]
[1729020460146,0.606668,66794.0,66788.0,0.01498]
[1729020460456,0.074873,66789.0,66788.0,0.01498]
[1729020460654,0.244873,66789.0,66788.0,0.01498]
[1729020460854,0.17,66789.0,66788.0,0.089854]
[1729020461051,0.3688,66794.0,66793.0,0.074869]
[1729020461357,0.3638,66794.0,66793.0,0.074869]
[1729020461752,0.3628,66794.0,66793.0,0.074869]
[1729020461966,0.3638,66794.0,66793.0,0.074869]
[1729020462361,0.3628,66794.0,66793.0,0.074869]
[1729020462658,0.244867,66795.0,66789.0,0.4502]
[1729020462659,0.17,66795.0,66789.0,0.4502]
[1729020462858,0.01137289,66798.0,66797.0,0.074864]
[1729020463057,0.074861,66800.0,66795.0,0.3608]
[1729020463259,0.074862,66799.0,66798.0,0.074862]
[1729020463451,0.244862,66799.0,66798.0,0.074862]
[1729020464556,0.256862,66799.0,66798.0,0.074862]
[1729020465353,0.074865,66797.0,66796.0,0.074865]
[1729020466457,0.084865,66797.0,66796.0,0.16278094]
[1729020466858,0.087865,66797.0,66796.0,0.08791594]
[1729020467863,0.087865,66797.0,66796.0,0.16278194]
[1729020470155,0.013,66797.0,66796.0,0.16278194]
[1729020470356,0.00224558,66813.0,66812.0,0.074848]
[1729020470562,0.07709158,66813.0,66810.0,0.07466755]
[1729020470758,0.074848,66812.0,66811.0,0.074848]
[1729020471068,0.074848,66812.0,66811.0,0.23700875]
[1729020471271,0.244848,66812.0,66811.0,0.074848]
[1729020471562,0.244848,66812.0,66811.0,0.14951555]
[1729020471766,0.244848,66812.0,66811.0,0.07466755]
[1729020471968,0.244848,66812.0,66811.0,0.001]
[1729020472155,0.244848,66812.0,66811.0,0.075849]
[1729020472466,0.244848,66812.0,66811.0,0.06069576]
[1729020473354,0.249848,66812.0,66811.0,0.001]
[1729020473553,0.249848,66812.0,66811.0,0.075849]
[1729020476065,0.249848,66812.0,66811.0,0.001]
[1729020483371,0.079848,66812.0,66811.0,0.075849]
[1729020483770,0.005,66812.0,66811.0,0.075849]
[1729020483973,0.005,66812.0,66811.0,0.15051655]
[1729020484162,0.005,66812.0,66811.0,0.075849]
[1729020484363,0.005,66812.0,66811.0,0.15051655]
[1729020484871,0.005,66812.0,66811.0,0.075849]
[1729020487275,0.079848,66812.0,66811.0,0.001]
[1729020488867,0.166148,66812.0,66811.0,0.001]
[1729020496573,0.166148,66812.0,66811.0,0.07566755]
[1729020496783,0.166148,66812.0,66811.0,0.001]
[1729020496976,0.166148,66812.0,66811.0,0.07566755]
[1729020497275,0.166148,66812.0,66811.0,0.16213514]
[1729020497578,0.079848,66812.0,66811.0,0.08746759]
[1729020497980,0.079848,66812.0,66811.0,0.16222661]
[1729020498183,0.079848,66812.0,66811.0,0.08746759]
[1729020498680,0.079848,66812.0,66811.0,0.16231659]
[1729020498878,0.079848,66812.0,66811.0,0.08746759]
[1729020500786,0.079848,66812.0,66811.0,0.17706865]
[1729020500969,0.079848,66812.0,66811.0,0.25191765]
[1729020500970,0.005,66812.0,66811.0,0.25191765]
[1729020501283,0.005,66812.0,66811.0,0.43523258]
[1729020501985,0.005,66812.0,66811.0,0.52133258]
[1729020502278,0.3608,66814.0,66811.0,1.5698258]
[1729020502479,0.3608,66820.0,66814.0,0.074845]
[1729020502782,0.3608,66820.0,66819.0,0.07484]
[1729020503087,0.3608,66820.0,66819.0,0.16098968]
[1729020503281,0.01060032,66821.0,66820.0,0.074839]
[1729020503477,0.3608,66828.0,66825.0,0.074833]
[1729020503678,0.24707734,66826.0,66825.0,0.08614968]
[1729020504080,0.24707734,66826.0,66824.0,0.074834]
[1729020504280,0.24707734,66826.0,66825.0,0.08573569]
[1729020504876,0.244832,66826.0,66825.0,0.08573569]
[1729020505076,0.248832,66826.0,66825.0,0.08573569]
[1729020505578,0.244832,66826.0,66825.0,0.08973569]
[1729020505784,0.250832,66826.0,66825.0,0.08973569]
[1729020506278,0.250832,66826.0,66825.0,0.16456869]
[1729020506279,0.006,66826.0,66825.0,0.16456869]
[1729020506479,0.01046957,66827.0,66825.0,0.43723569]
[1729020506685,0.43563,66828.0,66826.0,0.16056769]
[1729020506885,0.43563,66828.0,66827.0,0.07469582]
[1729020507276,0.074831,66827.0,66826.0,0.07469582]
[1729020507881,0.074831,66827.0,66826.0,0.07669582]
[1729020508380,0.074831,66827.0,66825.0,0.32702882]
[1729020508579,0.074831,66827.0,66826.0,0.002]
[1729020508779,0.074831,66827.0,66826.0,0.07669582]
[1729020508780,0.076831,66827.0,66826.0,0.07669582]
[1729020509175,0.076831,66827.0,66826.0,0.002]
[1729020509780,0.074831,66827.0,66826.0,0.002]
[1729020510085,0.077831,66827.0,66826.0,0.002]
[1729020510474,0.003,66827.0,66825.0,0.07769582]
[1729020510670,0.244832,66826.0,66825.0,0.07769582]
[1729020511088,0.244832,66826.0,66825.0,0.07469582]
[1729020511275,0.074833,66825.0,66824.0,0.07469582]
[1729020511480,0.074833,66825.0,66824.0,0.16017535]
[1729020511676,0.17,66826.0,66822.0,0.01498]
[1729020511677,0.074835,66823.0,66822.0,0.01498]
[1729020511882,0.244835,66823.0,66822.0,0.01498]
[1729020514676,0.075835,66823.0,66822.0,0.02098]
[1729020514992,0.01,75100.0,66822.0,0.02098]
[1729020514993,0.16816208,66840.0,66831.0,0.074826]
[1729020515175,0.16816208,66840.0,66822.0,1.675576]
[1729020515176,0.00224508,66840.0,66822.0,0.98178]
[1729020515489,0.074813,66843.0,66840.0,0.01273492]
[1729020515686,0.074813,66843.0,66842.0,0.074814]
[1729020516187,0.074814,66842.0,66841.0,0.1828]
[1729020516387,0.3608,66849.0,66841.0,0.3528]
[1729020516777,0.074811,66846.0,66842.0,0.074814]
[1729020517093,0.074814,66842.0,66841.0,0.1828]
[1729020518484,0.074814,66842.0,66841.0,0.1868]
[1729020518687,0.075814,66842.0,66841.0,0.24650503]
[1729020519085,0.075814,66842.0,66841.0,0.32132003]
[1729020519286,0.075814,66842.0,66841.0,0.261615]
[1729020519594,0.001,66842.0,66841.0,0.261615]
[1729020520091,0.3608,66849.0,66841.0,0.68212003]
[1729020520296,0.17,66881.0,66841.0,0.68212003]
[1729020520297,0.074799,66856.0,66848.0,0.17]
[1729020520481,0.36304451,66857.0,66847.0,0.3608]
[1729020520482,0.37357052,66857.0,66856.0,0.074798]
[1729020520684,0.17,66868.0,66855.0,0.17]
[1729020520878,0.074791,66863.0,66861.0,0.0446422]
[1729020521396,0.17,66868.0,66860.0,0.17]
[1729020521397,0.074793,66861.0,66860.0,0.17]
[1729020521886,0.074793,66861.0,66860.0,0.21460864]
[1729020522190,0.074793,66861.0,66860.0,0.17]
[1729020522788,0.008,66863.0,66860.0,0.17]
[1729020522986,0.008,66863.0,66861.0,0.074792]
[1729020523287,0.082791,66863.0,66861.0,0.074792]
[1729020523492,0.076791,66863.0,66861.0,0.074792]
[1729020523792,0.074792,66862.0,66861.0,0.074792]
[1729020524589,0.074792,66862.0,66861.0,0.075792]
[1729020524790,0.074792,66862.0,66861.0,0.001]
[1729020524979,0.076792,66862.0,66861.0,0.001]
[1729020525892,0.246792,66862.0,66861.0,0.001]
[1729020526490,0.172,66862.0,66861.0,0.001]
[1729020526792,0.074795,66859.0,66858.0,0.07449294]
[1729020526985,0.12732427,66859.0,66858.0,0.07449294]
[1729020527294,0.29728269,66859.0,66858.0,0.01497]
[1729020527490,0.12728269,66859.0,66858.0,0.01497]
[1729020527993,0.13028269,66859.0,66858.0,0.01597]
[1729020529087,0.01073889,66862.0,66861.0,0.074793]
[1729020529393,0.435591,66863.0,66862.0,0.074792]
[1729020529394,0.3608,66863.0,66862.0,0.074792]
[1729020529597,0.3608,66863.0,66862.0,0.244792]
[1729020530791,0.3638,66863.0,66862.0,0.244792]
[1729020531180,0.3708,66863.0,66862.0,0.245792]
[1729020531593,0.3708,66863.0,66862.0,0.075792]
[1729020534100,0.3608,66876.0,66862.0,1.58048]
[1729020534293,0.3608,66876.0,66875.0,0.244777]
[1729020534491,0.3608,66884.0,66876.0,0.074776]
[1729020534702,0.00224302,66890.0,66889.0,0.074761]
[1729020535000,0.00224302,66890.0,66877.0,0.074775]
[1729020535001,0.074763,66888.0,66887.0,0.01497]
[1729020535196,0.244763,66888.0,66887.0,0.01497]
[1729020536399,0.37115556,66890.0,66887.0,0.089734]
[1729020536696,0.074763,66888.0,66887.0,0.01497]
[1729020536897,0.076763,66888.0,66887.0,0.01597]
[1729020537489,0.083763,66888.0,66887.0,0.01597]
[1729020537693,0.083763,66888.0,66887.0,0.02797]
[1729020539095,0.084763,66888.0,66887.0,0.01697]
[1729020539297,0.254763,66888.0,66887.0,0.01697]
[1729020540201,1.303283,66888.0,66887.0,1e-08]
[1729020540404,1.303283,66888.0,66873.0,0.00224294]
[1729020540405,1.473283,66888.0,66873.0,0.00224294]
[1729020540601,0.074776,66876.0,66875.0,0.01496]
[1729020541300,0.244776,66876.0,66875.0,0.01496]
[1729020543007,0.244776,66876.0,66875.0,0.01596]
[1729020543008,0.252776,66876.0,66875.0,0.01596]
[1729020543209,0.008,66876.0,66875.0,0.01596]
[1729020543504,0.008,66876.0,66875.0,0.090737]
[1729020546304,0.082776,66876.0,66875.0,0.01596]
[1729020546809,0.082776,66876.0,66875.0,0.0605166]
[1729020547200,0.082776,66876.0,66875.0,0.01596]
[1729020550709,0.008,66876.0,66860.0,0.074794]
[1729020550902,0.074793,66861.0,66860.0,0.074794]
[1729020551101,0.17,66861.0,66852.0,0.0882]
[1729020551413,0.17,66853.0,66851.0,0.3608]
[1729020551598,0.074795,66859.0,66852.0,0.074803]
[1729020551800,0.0896,66860.0,66852.0,0.074803]
[1729020551801,0.17,66856.0,66852.0,0.074803]
[1729020552007,0.074801,66854.0,66852.0,0.074803]
[1729020552311,0.059832,66853.0,66852.0,0.074803]
[1729020553111,0.059832,66853.0,66852.0,0.101803]
[1729020553811,0.060832,66853.0,66852.0,0.101803]
[1729020554000,0.230832,66853.0,66852.0,0.027]
[1729020554197,0.215862,66853.0,66852.0,0.027]
[1729020554402,0.576662,66853.0,66852.0,0.027]
[1729020554602,0.074805,66850.0,66849.0,0.01497]
[1729020554905,0.074808,66847.0,66846.0,0.00224341]
[1729020555101,0.00084,66850.0,66848.0,0.01497]
[1729020555407,0.17,66851.0,66848.0,0.01497]
[1729020555614,0.074806,66849.0,66848.0,0.01497]
[1729020556309,0.074806,66849.0,66848.0,0.02297]
[1729020556916,0.074806,66849.0,66848.0,0.02097]
[1729020558008,0.074806,66849.0,66848.0,0.02197]
[1729020558712,0.074806,66849.0,66848.0,0.02097]
[1729020558905,0.09211536,66849.0,66848.0,0.02097]
[1729020559119,0.09211536,66849.0,66848.0,0.01897]
[1729020559508,0.08811536,66849.0,66848.0,0.01897]
[1729020559811,0.09511536,66849.0,66848.0,0.01497]
[1729020560917,0.45591536,66849.0,66848.0,0.01497]
[1729020562229,0.90467536,66849.0,66848.0,0.01497]
[1729020562809,0.90467536,66849.0,66846.0,0.00224341]
[1729020562810,0.074808,66847.0,66846.0,0.00224341]
[1729020563004,0.074823,66834.0,66832.0,0.0445566]
[1729020563212,0.074823,66834.0,66833.0,0.074824]
[1729020563923,0.07482,66837.0,66835.0,0.074822]
[1729020564218,0.0883,66846.0,66836.0,0.17]
[1729020564520,0.0883,66846.0,66832.0,0.3608]
[1729020564521,0.074816,66841.0,66839.0,0.17]
[1729020564907,0.074816,66841.0,66839.0,0.244817]
[1729020565112,0.074816,66841.0,66840.0,0.074816]
[1729020566918,0.075816,66841.0,66840.0,0.078816]
[1729020567417,0.075816,66841.0,66840.0,0.080816]
[1729020568314,0.436616,66841.0,66840.0,0.080816]
[1729020569218,0.436616,66841.0,66840.0,0.006]
[1729020571222,0.606616,66841.0,66840.0,0.006]
[1729020573832,0.436616,66841.0,66840.0,0.006]
[1729020575826,0.245816,66841.0,66840.0,0.006]
[1729020577639,0.44884,66840.0,66831.0,0.01497]
[1729020577826,0.074835,66823.0,66822.0,0.05945147]
[1729020578020,0.074836,66822.0,66817.0,0.05945147]
[1729020578221,0.074836,66822.0,66811.0,0.0837]
[1729020578222,0.074842,66817.0,66816.0,0.06169588]
[1729020578523,0.420672,66817.0,66816.0,0.00224441]
[1729020581426,0.423672,66817.0,66816.0,0.00224441]
[1729020581629,0.43655221,66817.0,66816.0,0.00224441]
[1729020583431,0.062872,66817.0,66816.0,0.07708741]
[1729020584523,0.003,66817.0,66816.0,0.07708741]
[1729020585035,0.003,66817.0,66816.0,0.13653888]
[1729020585226,0.003,66817.0,66816.0,0.13667656]
[1729020585424,0.003,66817.0,66816.0,0.07708741]
[1729020586131,0.003,66817.0,66816.0,0.13667718]
[1729020586331,0.003,66817.0,66816.0,0.13667538]
[1729020586836,0.003,66817.0,66816.0,0.07708741]
[1729020587430,0.003,66817.0,66816.0,0.13667812]
[1729020587936,0.003,66817.0,66816.0,0.07708741]
[1729020591427,0.003,66817.0,66816.0,0.2362449]
[1729020592137,0.003,66817.0,66816.0,0.07708741]
[1729020592835,0.003,66817.0,66816.0,0.13670741]
[1729020593139,0.003,66817.0,66816.0,0.24708741]
[1729020593841,0.003,66817.0,66816.0,0.3067078]
[1729020594028,0.003,66817.0,66816.0,0.1367078]
[1729020594234,0.077842,66817.0,66816.0,0.13670705]
[1729020594530,0.077842,66817.0,66816.0,0.07708741]
[1729020594935,0.077842,66817.0,66816.0,0.13670971]
[1729020595341,0.077842,66817.0,66816.0,0.07708741]
[1729020599141,0.003,66817.0,66816.0,0.07708741]
[1729020599341,0.003,66817.0,66816.0,0.16213218]
[1729020599648,0.3630451,66831.0,66830.0,0.074827]
[1729020599941,0.4378711,66831.0,66830.0,0.244827]
[1729020600241,0.4378711,66831.0,66830.0,0.05964978]